bitfinex-derivatives/quotes_BTCF0:USTF0_20260315
["timestamp","ask_amount","ask_price","bid_price","bid_amount"]
[1773593597931,0.00736,71468.0,71460.0,0.04197]
[1773593598228,0.00876,71468.0,71460.0,0.04197]
[1773593600846,0.0014,71468.0,71460.0,0.04197]
[1773593601031,0.0014,71468.0,71460.0,0.03497]
[1773593605446,0.041964,71472.0,71460.0,0.03497]
[1773593605738,0.0014,71471.0,71460.0,0.03497]
[1773593605933,0.041964,71472.0,71460.0,0.03497]
[1773593606140,0.0014,71471.0,71460.0,0.03497]
[1773593608844,0.041964,71472.0,71460.0,0.03497]
[1773593609043,0.0014,71471.0,71460.0,0.03497]
[1773593609242,0.041965,71469.0,71458.0,0.041971]
[1773593609445,0.0523467,71469.0,71452.0,0.0014]
[1773593609632,0.0523467,71469.0,71445.0,0.0546527]
[1773593609832,0.04197,71462.0,71450.0,0.041976]
[1773593610035,0.04337,71461.0,71450.0,0.041976]
[1773593610441,0.04337,71461.0,71448.0,0.041977]
[1773593611541,0.04337,71461.0,71449.0,0.041977]
[1773593612840,0.041971,71460.0,71447.0,0.043378]
[1773593613746,0.041971,71460.0,71447.0,0.041978]
[1773593614737,0.041971,71460.0,71448.0,0.041977]
[1773593615744,0.0881983,71460.0,71445.0,0.041979]
[1773593615947,0.041971,71459.0,71446.0,0.041978]
[1773593616147,0.0523467,71459.0,71446.0,0.041978]
[1773593616546,0.0523467,71459.0,71443.0,0.00737]
[1773593616943,0.041972,71458.0,71446.0,0.041978]
[1773593617142,0.0014,71461.0,71450.0,0.041976]
[1773593617345,0.04337,71461.0,71448.0,0.041977]
[1773593617545,0.041971,71460.0,71448.0,0.041977]
[1773593623551,0.0014,71461.0,71443.0,0.00877]
[1773593623749,0.0523467,71459.0,71447.0,0.041978]
[1773593624150,0.041971,71460.0,71447.0,0.041978]
[1773593626758,0.041971,71459.0,71447.0,0.041978]
[1773593636068,0.041972,71458.0,71447.0,0.041978]
[1773593651672,0.041971,71460.0,71447.0,0.041978]
[1773593652774,0.041971,71459.0,71447.0,0.041978]
[1773593653074,0.20440751,71458.0,71447.0,0.041978]
[1773593653273,0.041971,71459.0,71447.0,0.041978]
[1773593653474,0.20440461,71458.0,71447.0,0.041978]
[1773593653668,0.041971,71459.0,71447.0,0.041978]
[1773593653870,0.20440461,71458.0,71447.0,0.041978]
[1773593654168,0.041971,71459.0,71447.0,0.041978]
[1773593654373,0.20440102,71458.0,71447.0,0.041978]
[1773593654577,0.041971,71459.0,71447.0,0.041978]
[1773593654770,0.20440102,71458.0,71447.0,0.041978]
[1773593654964,0.041971,71459.0,71447.0,0.041978]
[1773593655172,0.20440121,71458.0,71447.0,0.041978]
[1773593655365,0.041971,71459.0,71447.0,0.041978]
[1773593655581,0.20439874,71458.0,71447.0,0.041978]
[1773593655875,0.041971,71459.0,71447.0,0.041978]
[1773593656067,0.20439874,71458.0,71447.0,0.041978]
[1773593656268,0.041971,71459.0,71447.0,0.041978]
[1773593656476,0.2043962,71458.0,71447.0,0.041978]
[1773593656674,0.041971,71459.0,71447.0,0.041978]
[1773593656871,0.20599493,71458.0,71447.0,0.041978]
[1773593657073,0.041971,71459.0,71447.0,0.041978]
[1773593657274,0.20599493,71458.0,71447.0,0.041978]
[1773593657472,0.041971,71459.0,71447.0,0.041978]
[1773593657670,0.2059933,71458.0,71447.0,0.041978]
[1773593657868,0.041971,71459.0,71447.0,0.041978]
[1773593658173,0.2059933,71458.0,71447.0,0.041978]
[1773593658373,0.041971,71459.0,71447.0,0.041978]
[1773593658574,0.20599201,71458.0,71447.0,0.041978]
[1773593658870,0.041971,71459.0,71447.0,0.041978]
[1773593659179,0.20599189,71458.0,71447.0,0.041978]
[1773593659372,0.041971,71459.0,71447.0,0.041978]
[1773593659574,0.20599062,71458.0,71447.0,0.041978]
[1773593659875,0.041971,71459.0,71447.0,0.041978]
[1773593660173,0.20599062,71458.0,71447.0,0.041978]
[1773593660374,0.041971,71459.0,71447.0,0.041978]
[1773593660574,0.20598988,71458.0,71447.0,0.041978]
[1773593660877,0.041971,71459.0,71447.0,0.041978]
[1773593661178,0.24796188,71458.0,71447.0,0.041978]
[1773593661476,0.041972,71458.0,71447.0,0.041978]
[1773593664677,0.0014,71463.0,71455.0,0.041973]
[1773593664884,0.0014,71465.0,71455.0,0.041973]
[1773593665880,0.0014,71465.0,71456.0,0.041973]
[1773593666781,0.041966,71468.0,71456.0,0.041973]
[1773593666983,0.0014,71467.0,71456.0,0.041973]
[1773593667381,0.041966,71468.0,71456.0,0.041973]
[1773593667583,0.0516833,71486.0,71457.0,0.04781996]
[1773593667786,0.0516833,71474.0,71453.0,0.04781996]
[1773593667986,0.0014,71473.0,71453.0,0.04781996]
[1773593668390,0.0530833,71473.0,71453.0,0.04781996]
[1773593668985,0.0530833,71473.0,71463.0,0.041969]
[1773593669588,0.0530833,71473.0,71464.0,0.041968]
[1773593673590,0.0014,71473.0,71465.0,0.041968]
[1773593675284,0.0014,71473.0,71460.0,0.08817134]
[1773593677087,0.0014,71473.0,71466.0,0.041967]
[1773593678291,0.0014,71473.0,71464.0,0.041968]
[1773593691404,0.0014,71473.0,71457.0,0.0014]
[1773593691704,0.041965,71469.0,71456.0,0.0014]
[1773593692406,0.041964,71471.0,71458.0,0.041971]
[1773593692707,0.041965,71470.0,71458.0,0.041971]
[1773593701010,0.0516833,71472.0,71456.0,0.0014]
[1773593701214,0.041966,71468.0,71456.0,0.041973]
[1773593702116,0.041965,71470.0,71457.0,0.041972]
[1773593703917,0.04947663,71471.0,71459.0,0.041971]
[1773593704219,0.0881418,71480.0,71455.0,0.0014]
[1773593704220,0.04947663,71480.0,71455.0,0.04775271]
[1773593704407,0.20674776,71479.0,71469.0,0.041965]
[1773593704603,0.0014,71483.0,71469.0,0.041965]
[1773593704812,0.24873948,71482.0,71470.0,0.041964]
[1773593705013,0.20818148,71481.0,71470.0,0.1301058]
[1773593705217,0.0014,71481.0,71470.0,0.0881418]
[1773593705516,0.00876,71484.0,71476.0,0.041961]
[1773593705908,0.00736,71484.0,71476.0,0.041961]
[1773593706215,0.0014,71483.0,71476.0,0.041961]
[1773593706412,0.04947663,71489.0,71476.0,0.041961]
[1773593706717,0.0014,71488.0,71476.0,0.041961]
[1773593706909,0.04947663,71489.0,71476.0,0.041961]
[1773593707106,0.043354,71488.0,71470.0,0.0881418]
[1773593707508,0.043355,71487.0,71473.0,0.041962]
[1773593709016,0.041956,71486.0,71473.0,0.041962]
[1773593710113,0.041956,71485.0,71473.0,0.041962]
[1773593710313,0.09143263,71485.0,71471.0,0.041964]
[1773593710719,0.09143263,71485.0,71472.0,0.041963]
[1773593712914,0.041954,71488.0,71470.0,0.0881418]
[1773593713215,0.043355,71487.0,71474.0,0.041962]
[1773593714319,0.041955,71486.0,71474.0,0.041962]
[1773593717524,0.09143163,71486.0,71474.0,0.041962]
[1773593727038,0.04947663,71486.0,71470.0,0.0895418]
[1773593727240,0.04795069,71483.0,71473.0,0.041962]
[1773593730044,0.0014,71488.0,71479.0,0.041959]
[1773593730634,0.04935069,71488.0,71479.0,0.041959]
[1773593734652,0.00876,71495.0,71478.0,0.0881418]
[1773593734849,0.05071,71495.0,71478.0,0.0881418]
[1773593735150,0.05071,71495.0,71483.0,0.041957]
[1773593735348,0.04931,71495.0,71483.0,0.041957]
[1773593735539,0.0014,71494.0,71483.0,0.041957]
[1773593735739,0.043351,71494.0,71483.0,0.041957]
[1773593735944,0.0014,71493.0,71478.0,0.0014]
[1773593736144,0.04935069,71493.0,71478.0,0.0014]
[1773593736648,0.04935069,71493.0,71477.0,0.0014]
[1773593737049,0.041952,71491.0,71479.0,0.041959]
[1773593738547,0.09130269,71493.0,71480.0,0.041958]
[1773593743655,0.04795069,71492.0,71480.0,0.041958]
[1773593745056,0.041953,71491.0,71480.0,0.041958]
[1773593749856,0.04795069,71492.0,71480.0,0.041958]
[1773593755063,0.04795069,71492.0,71481.0,0.041958]
[1773593755559,0.04795069,71492.0,71477.0,0.04336]
[1773593755757,0.0512913,71492.0,71477.0,0.04336]
[1773593755952,0.0512913,71492.0,71477.0,0.04196]
[1773593756966,0.041953,71490.0,71477.0,0.04196]
[1773593758761,0.0512913,71490.0,71475.0,0.041962]
[1773593758959,0.08810212,71485.0,71468.0,3e-08]
[1773593759165,0.041955,71487.0,71457.0,0.12421364]
[1773593759166,0.0512913,71472.0,71457.0,0.12421364]
[1773593759361,0.0526913,71472.0,71460.0,0.04197]
[1773593760064,0.0526913,71472.0,71461.0,0.041969]
[1773593769068,0.0526913,71472.0,71462.0,0.041969]
[1773593769469,0.0526913,71472.0,71463.0,0.041968]
[1773593771371,0.0526913,71472.0,71461.0,0.04197]
[1773593771974,0.041967,71467.0,71455.0,0.041973]
[1773593772265,0.0512913,71466.0,71455.0,0.041973]
[1773593774073,0.0512913,71466.0,71454.0,0.01473]
[1773593774273,0.041969,71463.0,71454.0,0.01473]
[1773593774473,0.0932603,71463.0,71454.0,0.01473]
[1773593774972,0.0512913,71463.0,71454.0,0.01473]
[1773593776175,0.0512913,71463.0,71453.0,0.041974]
[1773593777678,0.0512913,71463.0,71454.0,0.00737]
[1773593779880,0.0932603,71463.0,71454.0,0.00737]
[1773593780077,0.0512913,71462.0,71454.0,0.00737]
[1773593780374,0.0512913,71462.0,71440.0,0.08810212]
[1773593780677,0.0932613,71462.0,71450.0,0.041976]
[1773593783478,0.041968,71464.0,71451.0,0.041976]
[1773593784178,0.041968,71464.0,71452.0,0.041975]
[1773593785876,0.0014,71465.0,71450.0,0.13743812]
[1773593786071,0.04998643,71465.0,71450.0,0.13743812]
[1773593786981,0.04197,71462.0,71450.0,0.13743812]
[1773593787180,0.04197,71461.0,71450.0,0.049336]
[1773593788772,0.041971,71459.0,71450.0,0.00736]
[1773593788969,0.09055743,71459.0,71450.0,0.00736]
[1773593789883,0.04858643,71458.0,71450.0,0.00736]
[1773593790182,0.04998643,71458.0,71446.0,0.041978]
[1773593790980,0.04998643,71458.0,71447.0,0.041978]
[1773593793382,0.0014,71458.0,71444.0,0.05358799]
[1773593793585,0.04858643,71467.0,71444.0,0.05358799]
[1773593793586,0.041968,71465.0,71448.0,0.08810212]
[1773593793886,0.0014,71461.0,71450.0,0.00737]
[1773593794090,0.0014,71461.0,71452.0,0.041975]
[1773593794278,0.041968,71464.0,71452.0,0.041975]
[1773593794479,0.0014,71463.0,71452.0,0.041975]
[1773593794884,0.0014,71463.0,71453.0,0.041974]
[1773593795080,0.041968,71464.0,71453.0,0.041974]
[1773593795386,0.0014,71462.0,71453.0,0.041974]
[1773593795585,0.041968,71464.0,71453.0,0.041974]
[1773593795784,0.0014,71463.0,71453.0,0.041974]
[1773593796180,0.0014,71462.0,71453.0,0.041974]
[1773593796576,0.0014,71462.0,71450.0,0.00737]
[1773593796577,0.041968,71464.0,71451.0,0.041975]
[1773593796777,0.043369,71463.0,71451.0,0.041975]
[1773593797087,0.041969,71463.0,71451.0,0.041975]
[1773593797282,0.0014,71462.0,71451.0,0.041975]
[1773593798583,0.0014,71462.0,71450.0,0.00737]
[1773593798782,0.041971,71460.0,71450.0,0.00737]
[1773593799383,0.041972,71458.0,71450.0,0.00737]
[1773593799584,0.04998643,71462.0,71450.0,0.00737]
[1773593799984,0.041972,71458.0,71450.0,0.00737]
[1773593800490,0.041973,71457.0,71450.0,0.00737]
[1773593800989,0.041972,71458.0,71450.0,0.00737]
[1773593805993,0.041971,71460.0,71450.0,0.00737]
[1773593806193,0.09055743,71460.0,71450.0,0.00737]
[1773593806396,0.0014,71469.0,71451.0,0.05218799]
[1773593806598,0.041964,71472.0,71460.0,0.08810212]
[1773593806792,0.04858643,71477.0,71461.0,0.04197]
[1773593806992,0.0014,71476.0,71460.0,0.08810212]
[1773593807197,0.041963,71474.0,71462.0,0.041969]
[1773593807395,0.05956155,71489.0,71460.0,0.08810212]
[1773593807593,0.041958,71481.0,71470.0,0.08810212]
[1773593807789,0.04858643,71482.0,71453.0,0.05218799]
[1773593807996,0.0014,71488.0,71454.0,0.0014]
[1773593807997,0.04858643,71473.0,71454.0,0.0014]
[1773593808595,0.04858643,71473.0,71455.0,0.0014]
[1773593808786,0.04858643,71473.0,71460.0,0.08810212]
[1773593808984,0.04858643,71473.0,71461.0,0.041969]
[1773593812001,0.04858643,71473.0,71466.0,0.00736]
[1773593812701,0.00736,71468.0,71466.0,0.00736]
[1773593825608,0.04858643,71473.0,71459.0,0.0014]
[1773593826108,0.04858643,71473.0,71463.0,0.041969]
[1773593828714,0.09032902,71477.0,71465.0,0.041967]
[1773593829018,0.09172902,71477.0,71466.0,0.041967]
[1773593829205,0.04976802,71477.0,71466.0,0.041967]
[1773593829506,0.00736,71473.0,71467.0,0.041966]
[1773593830107,0.00736,71473.0,71468.0,0.041966]
[1773593830308,0.00736,71473.0,71468.0,0.041965]
[1773593833311,0.00736,71473.0,71464.0,0.041968]
[1773593834216,0.00736,71473.0,71463.0,0.08812751]
[1773593835009,0.00736,71473.0,71464.0,0.041968]
[1773593837518,0.00736,71473.0,71463.0,0.08812751]
[1773593838018,0.00736,71473.0,71463.0,0.13009551]
[1773593838922,0.049323,71473.0,71463.0,0.08812751]
[1773593840015,0.00736,71473.0,71463.0,0.08812751]
[1773593840324,0.04836802,71466.0,71456.0,0.043373]
[1773593840620,0.04836802,71466.0,71456.0,0.041973]
[1773593840825,0.041967,71467.0,71456.0,0.041973]
[1773593842123,0.043365,71469.0,71457.0,0.041972]
[1773593844326,0.041966,71468.0,71457.0,0.041972]
[1773593881460,0.0014,71469.0,71458.0,0.041972]
[1773593893979,0.0014,71469.0,71456.0,0.041972]
[1773593894983,0.041966,71468.0,71456.0,0.041972]
[1773593895184,0.041966,71468.0,71457.0,0.041972]
[1773593896387,0.0014,71469.0,71460.0,0.04197]
[1773593897583,0.0014,71469.0,71453.0,0.04989627]
[1773593897584,0.0014,71469.0,71458.0,0.041971]
[1773593897791,0.09147375,71466.0,71451.0,0.0014]
[1773593897982,0.09147375,71466.0,71454.0,0.041974]
[1773593898489,0.041968,71466.0,71454.0,0.041974]
[1773593912600,0.041968,71466.0,71452.0,0.1195]
[1773593912601,0.041968,71466.0,71455.0,0.041973]
[1773593913503,0.041966,71468.0,71456.0,0.041972]
[1773593914100,0.041967,71467.0,71456.0,0.041972]
[1773593918209,0.041967,71467.0,71454.0,0.041974]
[1773593918603,0.041967,71467.0,71455.0,0.041973]
[1773593924610,0.041967,71466.0,71455.0,0.041973]
[1773593931100,0.0014,71472.0,71451.0,0.04502917]
[1773593931304,0.0014,71472.0,71460.0,0.08814647]
[1773593931999,0.0014,71472.0,71462.0,0.041969]
[1773593933216,0.21470742,71471.0,71462.0,0.041969]
[1773593933417,0.0014,71472.0,71462.0,0.041969]
[1773593933711,0.21467744,71471.0,71462.0,0.041969]
[1773593933912,0.0014,71472.0,71462.0,0.041969]
[1773593934210,0.0014,71472.0,71465.0,0.00736]
[1773593934211,0.21467757,71471.0,71465.0,0.00736]
[1773593934413,0.0014,71472.0,71465.0,0.00736]
[1773593934614,0.21466122,71471.0,71465.0,0.00736]
[1773593934814,0.00736,71468.0,71465.0,0.00736]
[1773593941116,0.0014,71472.0,71465.0,0.00736]
[1773593941320,0.0014,71471.0,71466.0,0.041967]
[1773593941523,0.0014,71471.0,71464.0,0.041968]
[1773593941818,0.0014,71474.0,71464.0,0.041968]
[1773593945226,0.0014,71474.0,71464.0,0.049328]
[1773593953928,0.04357806,71473.0,71464.0,0.00736]
[1773593954123,0.04357806,71469.0,71458.0,0.041971]
[1773593955229,0.04357806,71469.0,71462.0,0.00736]
[1773593955930,0.00736,71465.0,71462.0,0.00736]
[1773593956231,0.08554106,71473.0,71462.0,0.00736]
[1773593956427,0.041964,71472.0,71461.0,0.04197]
[1773593959234,0.041964,71472.0,71461.0,0.00736]
[1773593961137,0.04357806,71473.0,71461.0,0.00736]
[1773593961328,0.08554406,71468.0,71461.0,0.00736]
[1773593961836,0.041967,71467.0,71461.0,0.00736]
[1773593968839,0.04471066,71464.0,71450.0,0.08812045]
[1773593969038,0.04471066,71462.0,71451.0,0.041976]
[1773593969239,0.04471066,71462.0,71452.0,0.0014]
[1773593969737,0.04471066,71462.0,71456.0,0.00737]
[1773593969938,0.04471066,71460.0,71445.0,0.0014]
[1773593970441,0.00737,71458.0,71445.0,0.0014]
[1773593970641,0.00737,71458.0,71451.0,0.041975]
[1773593970831,0.041969,71463.0,71451.0,0.041975]
[1773593971029,0.041969,71463.0,71452.0,0.041975]
[1773593971239,0.041968,71465.0,71452.0,0.041975]
[1773593972639,0.041968,71465.0,71457.0,0.00737]
[1773593973144,0.041968,71464.0,71457.0,0.00737]
[1773593973347,0.00736,71460.0,71457.0,0.00737]
[1773593973542,0.041968,71464.0,71457.0,0.00737]
[1773593974041,0.041968,71464.0,71452.0,0.041975]
[1773593976848,0.041968,71464.0,71452.0,0.049335]
[1773593978645,0.041968,71464.0,71453.0,0.1195]
[1773593981648,0.041968,71464.0,71454.0,0.1195]
[1773593984652,0.041968,71464.0,71453.0,0.1195]
[1773593987756,0.041968,71464.0,71454.0,0.1195]
[1773593990660,0.041968,71464.0,71453.0,0.1195]
[1773593991457,0.08667966,71463.0,71453.0,0.1195]
[1773593993765,0.08667966,71463.0,71454.0,0.1195]
[1773593994967,0.005,71487.0,71455.0,0.16212025]
[1773593995271,0.005,71487.0,71468.0,0.041965]
[1773593995272,0.041958,71482.0,71468.0,0.041965]
[1773593996063,0.041958,71482.0,71470.0,0.041965]
[1773593996667,0.0014,71482.0,71470.0,0.08812045]
[1773593996868,0.041221,71499.0,71472.0,0.041963]
[1773593997164,0.001,71482.0,71472.0,0.041963]
[1773593997370,0.0014,71481.0,71472.0,0.041963]
[1773593997570,0.001,71482.0,71472.0,0.041963]
[1773593997870,0.0014,71481.0,71472.0,0.041963]
[1773593998466,0.041221,71484.0,71470.0,0.08812045]
[1773593999857,0.0014,71485.0,71470.0,0.08812045]
[1773594000057,0.0014,71485.0,71466.0,0.0014]
[1773594000565,0.0014,71485.0,71470.0,0.08809636]
[1773594000780,0.0014,71485.0,71475.0,0.08809636]
[1773594000958,0.0014,71486.0,71475.0,0.08809636]
[1773594001270,0.0014,71486.0,71470.0,0.13071661]
[1773594001464,0.043356,71485.0,71446.0,0.41839288]
[1773594001661,0.083179,71482.0,71460.0,0.08809636]
[1773594001858,0.041221,71477.0,71460.0,0.08949636]
[1773594002058,0.0014,71476.0,71460.0,0.08949636]
[1773594002469,0.0014,71476.0,71462.0,0.01472]
[1773594002865,0.0014,71476.0,71468.0,0.041966]
[1773594003357,0.0014,71476.0,71462.0,0.01472]
[1773594003358,0.0014,71476.0,71466.0,0.041967]
[1773594003558,0.042621,71476.0,71466.0,0.041967]
[1773594004370,0.042621,71476.0,71465.0,0.041967]
[1773594005975,0.041963,71474.0,71462.0,0.056689]
[1773594006171,0.041221,71472.0,71462.0,0.01472]
[1773594006361,0.041221,71472.0,71450.0,0.13073876]
[1773594006362,0.041221,71466.0,71450.0,0.08811851]
[1773594006563,0.041221,71466.0,71459.0,0.041971]
[1773594006774,0.0014,71467.0,71460.0,0.04197]
[1773594007668,0.0014,71467.0,71462.0,0.00736]
[1773594008574,0.00736,71465.0,71462.0,0.00736]
[1773594010173,0.0014,71467.0,71458.0,0.041971]
[1773594011974,0.00876,71467.0,71458.0,0.041971]
[1773594017169,0.041967,71466.0,71453.0,0.041974]
[1773594017373,0.00876,71467.0,71450.0,0.043376]
[1773594017374,0.041221,71465.0,71450.0,0.043376]
[1773594017677,0.041221,71462.0,71448.0,0.00737]
[1773594018181,0.041221,71462.0,71450.0,0.08811851]
[1773594019085,0.041221,71462.0,71451.0,0.041975]
[1773594019681,0.083191,71462.0,71451.0,0.041975]
[1773594021987,0.04103219,71461.0,71451.0,0.041975]
[1773594022187,0.0014,71460.0,71451.0,0.041975]
[1773594023691,0.0014,71460.0,71451.0,0.161475]
[1773594026694,0.0014,71460.0,71452.0,0.1195]
[1773594029695,0.0014,71460.0,71451.0,0.041975]
[1773594031598,0.04243219,71460.0,71445.0,0.041979]
[1773594031802,0.04103219,71458.0,71446.0,0.041979]
[1773594033097,0.08300419,71458.0,71446.0,0.041979]
[1773594033898,0.08300419,71458.0,71447.0,0.041978]
[1773594034099,0.04103219,71458.0,71448.0,0.041977]
[1773594035001,0.043371,71460.0,71448.0,0.041977]
[1773594035794,0.00736,71466.0,71451.0,0.04231258]
[1773594036303,0.0014,71465.0,71451.0,0.04231258]
[1773594036608,0.0014,71464.0,71456.0,0.041973]
[1773594036790,0.0014,71469.0,71454.0,0.13043109]
[1773594036996,0.0014,71469.0,71459.0,0.041971]
[1773594037401,0.0014,71468.0,71458.0,0.08811851]
[1773594038901,0.041965,71469.0,71455.0,0.041973]
[1773594039105,0.043366,71468.0,71455.0,0.041973]
[1773594039298,0.043366,71468.0,71461.0,0.00737]
[1773594039603,0.0014,71467.0,71461.0,0.00737]
[1773594039906,0.00736,71463.0,71461.0,0.00737]
[1773594040105,0.0014,71467.0,71461.0,0.00737]
[1773594040710,0.0014,71467.0,71455.0,0.041973]
[1773594043500,0.0014,71467.0,71455.0,0.049333]
[1773594045907,0.043367,71467.0,71455.0,0.049333]
[1773594046709,0.04103219,71459.0,71439.0,0.0014]
[1773594046902,0.0014,71458.0,71445.0,0.041979]
[1773594047507,0.0014,71458.0,71447.0,0.041978]
[1773594048007,0.0014,71458.0,71440.0,0.08951851]
[1773594048207,0.0014,71458.0,71449.0,0.041977]
[1773594049812,0.0014,71458.0,71452.0,0.00737]
[1773594050409,0.00737,71455.0,71452.0,0.00737]
[1773594052105,0.0014,71458.0,71452.0,0.00737]
[1773594052408,0.04103219,71463.0,71450.0,0.041976]
[1773594052409,0.0014,71457.0,71450.0,0.041976]
[1773594054024,0.0014,71457.0,71450.0,0.00737]
[1773594059821,0.0014,71465.0,71450.0,0.00737]
[1773594060125,0.043368,71465.0,71450.0,0.00737]
[1773594060427,0.043368,71465.0,71453.0,0.041974]
[1773594060621,0.00736,71468.0,71457.0,0.041972]
[1773594060818,0.00058289,71464.0,71457.0,0.041972]
[1773594061218,0.04326519,71488.0,71455.0,0.04155551]
[1773594061512,0.041958,71481.0,71463.0,0.04155551]
[1773594062121,0.0014,71480.0,71463.0,0.04155551]
[1773594063127,0.043359,71480.0,71466.0,0.041967]
[1773594063428,0.0014,71483.0,71472.0,0.041963]
[1773594064024,0.001,71481.0,71472.0,0.041963]
[1773594064618,0.0014,71482.0,71472.0,0.041963]
[1773594067830,0.04466519,71482.0,71466.0,0.0014]
[1773594068331,0.08662319,71482.0,71469.0,0.041965]
[1773594068533,0.08662319,71482.0,71470.0,0.041964]
[1773594068725,0.04466519,71482.0,71471.0,0.041964]
[1773594073132,0.21055004,71481.0,71471.0,0.041964]
[1773594073333,0.04466519,71482.0,71471.0,0.041964]
[1773594073534,0.21053609,71481.0,71471.0,0.041964]
[1773594073732,0.04466519,71482.0,71471.0,0.041964]
[1773594074030,0.04326519,71480.0,71470.0,0.041964]
[1773594074229,0.04326519,71475.0,71463.0,0.041968]
[1773594074532,0.05402884,71489.0,71461.0,0.04197]
[1773594074533,0.04326519,71472.0,71461.0,0.04197]
[1773594074732,0.04466519,71471.0,71462.0,0.041969]
[1773594074931,0.0014,71470.0,71463.0,0.041968]
[1773594075733,0.04196,71478.0,71465.0,0.041967]
[1773594075925,0.08662619,71477.0,71465.0,0.041967]
[1773594076126,0.0014,71476.0,71465.0,0.041967]
[1773594081237,0.043361,71476.0,71465.0,0.041967]
[1773594083241,0.043361,71476.0,71460.0,0.08810271]
[1773594083242,0.041962,71475.0,71460.0,0.08810271]
[1773594083541,0.041962,71475.0,71463.0,0.041968]
[1773594085040,0.04191548,71474.0,71463.0,0.041968]
[1773594086333,0.04191548,71474.0,71462.0,0.041969]
[1773594086534,0.04191548,71474.0,71463.0,0.041968]
[1773594088744,0.04191548,71474.0,71462.0,0.041969]
[1773594089042,0.04191548,71474.0,71463.0,0.041968]
[1773594095947,0.04191548,71474.0,71464.0,0.041968]
[1773594103344,0.04191548,71474.0,71460.0,0.08810271]
[1773594103551,0.0014,71476.0,71460.0,0.08810271]
[1773594103850,0.0014,71476.0,71464.0,0.041968]
[1773594111857,0.043361,71476.0,71464.0,0.041968]
[1773594113160,0.20650524,71475.0,71464.0,0.041968]
[1773594113355,0.20650524,71474.0,71464.0,0.041968]
[1773594113659,0.20650524,71473.0,71464.0,0.041968]
[1773594113864,0.043361,71476.0,71464.0,0.041968]
[1773594114159,0.20650516,71475.0,71464.0,0.041968]
[1773594114461,0.20650516,71474.0,71464.0,0.041968]
[1773594114762,0.20650516,71473.0,71464.0,0.041968]
[1773594114961,0.043361,71476.0,71464.0,0.041968]
[1773594115261,0.20650414,71475.0,71464.0,0.041968]
[1773594115461,0.20650414,71474.0,71464.0,0.041968]
[1773594115662,0.20650414,71473.0,71464.0,0.041968]
[1773594115860,0.043361,71476.0,71464.0,0.041968]
[1773594116060,0.2065031,71475.0,71464.0,0.041968]
[1773594116256,0.2065031,71474.0,71464.0,0.041968]
[1773594116462,0.2065031,71473.0,71464.0,0.041968]
[1773594116665,0.043361,71476.0,71464.0,0.041968]
[1773594116964,0.20650228,71475.0,71464.0,0.041968]
[1773594117156,0.20650228,71474.0,71464.0,0.041968]
[1773594117361,0.04039549,71472.0,71457.0,0.01473]
[1773594117559,0.246897,71471.0,71458.0,0.041971]
[1773594117756,0.20650151,71470.0,71458.0,0.041971]
[1773594118062,0.043365,71469.0,71457.0,0.056702]
[1773594118261,0.04179549,71469.0,71457.0,0.01473]
[1773594118461,0.20650415,71468.0,71457.0,0.01473]
[1773594118661,0.04179549,71469.0,71457.0,0.01473]
[1773594118857,0.20650403,71468.0,71457.0,0.01473]
[1773594119060,0.04179549,71469.0,71457.0,0.01473]
[1773594119061,0.04039549,71465.0,71457.0,0.01473]
[1773594119257,0.04039549,71465.0,71450.0,0.08810271]
[1773594119258,0.04039549,71464.0,71445.0,0.0014]
[1773594119563,0.04039549,71464.0,71454.0,0.041974]
[1773594119754,0.04039549,71464.0,71454.0,0.0383523]
[1773594120156,0.0014,71463.0,71454.0,0.0383523]
[1773594120557,0.00737,71460.0,71454.0,0.0383523]
[1773594120965,0.00737,71460.0,71455.0,0.041973]
[1773594123566,0.0014,71463.0,71455.0,0.041973]
[1773594124771,0.00737,71462.0,71455.0,0.041973]
[1773594126575,0.00737,71462.0,71453.0,0.041974]
[1773594126876,0.0014,71463.0,71453.0,0.041974]
[1773594127076,0.0014,71463.0,71454.0,0.041974]
[1773594128272,0.00737,71462.0,71454.0,0.041974]
[1773594128471,0.00737,71462.0,71453.0,0.041974]
[1773594134178,0.04039549,71457.0,71443.0,0.00737]
[1773594134378,0.04039549,71457.0,71448.0,0.041977]
[1773594134580,0.0014,71456.0,71448.0,0.041977]
[1773594136187,0.0014,71456.0,71443.0,0.00737]
[1773594136374,0.0014,71456.0,71446.0,0.041978]
[1773594143092,0.0014,71456.0,71448.0,0.041977]
[1773594144193,0.0014,71456.0,71441.0,0.03760317]
[1773594144395,0.0014,71461.0,71451.0,0.03760317]
[1773594146086,0.0014,71461.0,71453.0,0.041974]
[1773594147190,0.0014,71460.0,71453.0,0.041974]
[1773594147386,0.00484621,71462.0,71453.0,0.041974]
[1773594147592,0.0014,71460.0,71453.0,0.041974]
[1773594148096,0.00066996,71460.0,71453.0,0.041974]
[1773594148997,0.00484621,71462.0,71453.0,0.041974]
[1773594149198,0.00484621,71462.0,71454.0,0.041974]
[1773594151499,0.043367,71466.0,71454.0,0.041974]
[1773594152799,0.00484,71462.0,71454.0,0.041974]
[1773594155893,0.04055034,71480.0,71463.0,0.041969]
[1773594156098,0.1301066,71490.0,71463.0,0.041969]
[1773594156099,0.20772721,71479.0,71463.0,0.041969]
[1773594156299,0.04055034,71477.0,71463.0,0.041969]
[1773594156493,0.0014,71476.0,71463.0,0.041969]
[1773594157001,0.043362,71476.0,71463.0,0.041969]
[1773594158601,0.043362,71476.0,71468.0,0.00736]
[1773594159197,0.00736,71471.0,71468.0,0.00736]
[1773594159400,0.0014,71470.0,71468.0,0.00736]
[1773594159596,0.00736,71471.0,71468.0,0.00736]
[1773594159802,0.04055034,71482.0,71460.0,0.0881536]
[1773594159997,0.04055034,71486.0,71470.0,0.1301176]
[1773594160204,0.20765751,71485.0,71470.0,0.1301176]